bitfinex/quotes_BTCUSD_20241110
["timestamp","ask_amount","ask_price","bid_price","bid_amount"]
[1731277662744,0.30801182,81009.0,80999.0,0.246916]
[1731277662984,0.246892,81007.0,80984.0,0.0174469]
[1731277663152,0.18456882,81018.0,80985.0,0.005]
[1731277663352,0.18456882,81007.0,80985.0,0.005]
[1731277663834,0.18456882,81007.0,81004.0,0.123449]
[1731277664134,0.18456882,81007.0,81006.0,0.123447]
[1731277664286,4e-05,81010.0,81007.0,0.146446]
[1731277664495,0.12598221,81010.0,81007.0,0.023]
[1731277664702,0.12598221,81010.0,81004.0,0.246899]
[1731277664703,0.12598221,81010.0,81004.0,0.023]
[1731277664892,0.00041036,81007.0,81006.0,0.123447]
[1731277665485,0.00041036,81007.0,81004.0,0.13645]
[1731277665684,0.00037036,81006.0,81004.0,0.12345]
[1731277666119,0.00037036,81006.0,80984.0,0.0182889]
[1731277666120,0.12594221,81005.0,80984.0,0.0182889]
[1731277666321,0.12594221,81005.0,80984.0,0.0232889]
[1731277666525,0.00037036,81006.0,80984.0,0.0232889]
[1731277666526,0.00037036,81006.0,81005.0,0.123449]
[1731277667278,0.00037036,81006.0,81005.0,0.123409]
[1731277667657,0.00037036,81006.0,81005.0,0.42464211]
[1731277667878,4e-05,81019.0,81018.0,0.01]
[1731277668082,4.7e-07,81023.0,81022.0,0.233423]
[1731277668251,4.7e-07,81023.0,81022.0,0.35936521]
[1731277668451,4.7e-07,81023.0,81022.0,0.40118715]
[1731277668839,4.7e-07,81023.0,81022.0,0.43946521]
[1731277669125,0.18456882,81070.0,81037.0,0.2334]
[1731277669272,0.18456882,81070.0,81037.0,0.35934221]
[1731277669440,0.18456882,81070.0,81037.0,0.36134221]
[1731277669638,0.18456882,81070.0,81049.0,0.233382]
[1731277669878,0.18456882,81070.0,81049.0,0.38232421]
[1731277670097,0.18358598,81060.0,81059.0,0.146366]
[1731277670317,0.18456882,81070.0,81059.0,0.14894221]
[1731277670469,0.18456882,81070.0,81069.0,0.023]
[1731277670871,0.005,81078.0,81065.0,0.023]
[1731277671095,0.005,81076.0,81064.0,0.123358]
[1731277671326,0.005,81076.0,81065.0,0.023]
[1731277671327,0.246688,81074.0,81065.0,0.023]
[1731277671525,0.005,81076.0,81065.0,0.146357]
[1731277671688,0.123349,81071.0,81060.0,0.24673]
[1731277671891,0.246685,81075.0,81060.0,0.123364]
[1731277672145,0.18456882,81062.0,81045.0,0.246774]
[1731277672362,0.123366,81060.0,81052.0,0.123376]
[1731277672572,0.123368,81058.0,81045.0,0.246773]
[1731277672807,0.123367,81059.0,81046.0,0.123385]
[1731277672998,0.005,81066.0,81046.0,0.123385]
[1731277672999,0.123356,81066.0,81053.0,0.123375]
[1731277673162,0.123356,81066.0,81047.0,0.2492377]
[1731277673163,0.18456882,81057.0,81043.0,0.005]
[1731277673362,0.005,81066.0,81053.0,0.023]
[1731277673587,0.18456882,81060.0,81052.0,0.123376]
[1731277673768,0.123366,81060.0,81053.0,0.023]
[1731277673985,0.123368,81058.0,81040.0,0.123395]
[1731277674205,0.123378,81052.0,81034.0,0.246809]
[1731277674412,0.246715,81065.0,81042.0,0.005]
[1731277674632,0.18456882,81062.0,81061.0,0.123363]
[1731277674994,0.18456882,81062.0,81052.0,0.005]
[1731277675197,4e-05,81066.0,81065.0,0.123357]
[1731277675580,4e-05,81066.0,81053.0,0.13094221]
[1731277675581,4e-05,81066.0,81046.0,0.1]
[1731277675798,0.123363,81062.0,81047.0,0.123385]
[1731277675989,4e-05,81066.0,81044.0,0.1]
[1731277676216,4e-05,81066.0,81048.0,0.005]
[1731277676428,4e-05,81066.0,81051.0,0.246758]
[1731277676429,0.18456882,81062.0,81051.0,0.246758]
[1731277676594,4e-05,81066.0,81057.0,0.123368]
[1731277676778,8e-05,81066.0,81049.0,0.13094221]
[1731277676990,8e-05,81066.0,81058.0,0.123366]
[1731277677164,8e-05,81066.0,81050.0,0.123379]
[1731277677165,0.18456882,81061.0,81050.0,0.123379]
[1731277677395,8e-05,81066.0,81051.0,0.37782694]
[1731277677587,0.246718,81064.0,81052.0,0.00770694]
[1731277677939,0.001686,81065.0,81053.0,0.37013]
[1731277677940,0.246724,81062.0,81053.0,0.37013]
[1731277678219,0.246724,81062.0,81054.0,0.00770694]
[1731277678412,0.005,81063.0,81054.0,0.00770694]
[1731277678554,0.005,81063.0,81055.0,0.37012]
[1731277678759,0.005,81063.0,81056.0,0.00770694]
[1731277679003,0.005,81063.0,81057.0,0.37011]
[1731277679004,0.123369,81058.0,81057.0,0.37011]
[1731277679235,0.123369,81058.0,81057.0,0.37781765]
[1731277679443,0.123369,81058.0,81057.0,0.37011]
[1731277679812,0.001686,81065.0,81057.0,0.37011]
[1731277680022,0.123361,81063.0,81058.0,0.00770757]
[1731277680240,0.31051103,81062.0,81059.0,0.246734]
[1731277680472,0.233365,81060.0,81059.0,0.246734]
[1731277680690,0.36930721,81060.0,81059.0,0.246734]
[1731277680898,0.25430721,81060.0,81059.0,0.246734]
[1731277681743,0.24930721,81060.0,81059.0,0.246734]
[1731277681956,0.123365,81060.0,81059.0,0.246734]
[1731277682311,0.123405,81060.0,81059.0,0.246734]
[1731277683066,0.123445,81060.0,81059.0,0.246734]
[1731277683625,0.123485,81060.0,81059.0,0.26677691]
[1731277684054,0.123485,81060.0,81059.0,0.246734]
[1731277685701,0.123525,81060.0,81059.0,0.246734]
[1731277685843,0.123525,81060.0,81059.0,0.25444179]
[1731277686233,0.25950721,81060.0,81059.0,0.25444179]
[1731277686478,0.14338,81050.0,81049.0,0.01233246]
[1731277686705,0.14338,81050.0,81025.0,0.07019358]
[1731277686706,0.005,81031.0,81025.0,0.05264518]
[1731277686905,0.12594221,81030.0,81024.0,0.03517438]
[1731277687074,0.123418,81025.0,81024.0,0.03517438]
[1731277687279,0.12594221,81030.0,81022.0,0.05264518]
[1731277687488,0.246825,81029.0,81024.0,0.03518777]
[1731277687848,0.005,81031.0,81023.0,0.493671]
[1731277688066,0.12594221,81031.0,81025.0,0.37026]
[1731277688548,0.123417,81026.0,81025.0,0.40544777]
[1731277688897,0.128417,81026.0,81025.0,0.37026]
[1731277689329,0.25435921,81026.0,81025.0,0.37026]
[1731277689746,0.123417,81026.0,81025.0,0.37026]
[1731277690206,0.128417,81026.0,81025.0,0.37026]
[1731277690547,0.25435921,81026.0,81025.0,0.37026]
[1731277691166,0.25439921,81026.0,81025.0,0.37026]
[1731277691834,0.26439921,81026.0,81025.0,0.37026]
[1731277692185,0.36939921,81026.0,81025.0,0.37026]
[1731277692411,0.005,81007.0,81006.0,0.05368253]
[1731277692585,0.005,81005.0,81004.0,0.03368253]
[1731277692800,0.005,81005.0,80983.0,0.35264306]
[1731277692801,0.12594221,81005.0,80997.0,0.07045271]
[1731277693059,0.37284321,81004.0,80997.0,0.07045271]
[1731277693249,0.37284321,81004.0,80988.0,0.01234167]
[1731277693250,0.37784321,81004.0,81000.0,0.07045271]
[1731277693448,0.123457,81000.0,80998.0,0.37037]
[1731277693592,0.123458,80999.0,80998.0,0.37037]
[1731277694138,0.24940021,80999.0,80998.0,0.37037]
[1731277694460,0.24940021,80999.0,80998.0,0.44106763]
[1731277694461,0.25440021,80999.0,80998.0,0.44106763]
[1731277694824,0.25440021,80999.0,80998.0,0.37037]
[1731277694825,0.24944021,80999.0,80998.0,0.37037]
[1731277695041,0.25444021,80999.0,80998.0,0.37037]
[1731277695206,0.25444021,80999.0,80998.0,0.44106763]
[1731277695410,0.24944021,80999.0,80998.0,0.37037]
[1731277695653,0.25444021,80999.0,80998.0,0.37037]
[1731277696852,0.25448021,80999.0,80998.0,0.37037]
[1731277697996,0.25452021,80999.0,80998.0,0.37037]
[1731277698145,0.25456021,80999.0,80998.0,0.37037]
[1731277698960,0.25460021,80999.0,80998.0,0.40571872]
[1731277699531,0.25460021,80999.0,80998.0,0.37037]
[1731277699976,0.25464021,80999.0,80998.0,0.37037]
[1731277700404,0.30054021,80999.0,80998.0,0.37037]
[1731277700561,0.24964021,80999.0,80998.0,0.37037]
[1731277700756,0.25464021,80999.0,80998.0,0.40571872]
[1731277700952,0.13118221,80999.0,80998.0,0.37037]
[1731277701149,0.13118221,80999.0,80998.0,0.371213]
[1731277701607,0.25464021,80999.0,80998.0,0.371213]
[1731277702016,0.25464021,80999.0,80998.0,0.42417334]
[1731277702527,0.25964021,80999.0,80998.0,0.371213]
[1731277702669,0.25464021,80999.0,80998.0,0.371213]
[1731277704891,0.25964021,80999.0,80998.0,0.371213]
[1731277705303,0.27990527,80999.0,80998.0,0.371213]
[1731277706916,0.28990527,80999.0,80998.0,0.371213]
[1731277707141,0.3682767,80999.0,80984.0,0.0182889]
[1731277707307,0.36942121,80985.0,80984.0,0.0182889]
[1731277707726,0.41582121,80985.0,80984.0,0.0182889]
[1731277708151,0.41582121,80985.0,80984.0,0.0234112]
[1731277708280,0.41582121,80985.0,80953.0,0.05297724]
[1731277708281,0.01,80944.0,80943.0,0.001396]
[1731277708479,0.128571,80925.0,80913.0,0.0883754]
[1731277708815,0.25451321,80925.0,80913.0,8e-05]
[1731277708979,0.12594221,80925.0,80916.0,0.247169]
[1731277709180,0.13094221,80925.0,80916.0,0.247169]
[1731277709380,0.12594221,80925.0,80913.0,8e-05]
[1731277709599,0.005,80927.0,80916.0,0.247169]
[1731277709805,0.005,80927.0,80923.0,0.123573]
[1731277710008,0.005,80935.0,80917.0,0.247165]
[1731277710364,0.18456882,80941.0,80917.0,0.247165]
[1731277710365,0.18456882,80941.0,80917.0,0.252165]
[1731277710711,0.12594221,80940.0,80931.0,0.247124]
[1731277710890,0.24949021,80940.0,80931.0,0.002]
[1731277711098,0.005,80949.0,80916.0,0.005]
[1731277711099,0.005,80953.0,80937.0,0.002]
[1731277711324,0.247014,80967.0,80946.0,0.002]
[1731277711325,0.18456882,80947.0,80946.0,0.002]
[1731277711519,0.0234112,80968.0,80941.0,0.247091]
[1731277711520,0.005,80963.0,80948.0,0.002]
[1731277711672,0.005,80963.0,80949.0,0.123534]
[1731277711673,0.18456882,80950.0,80949.0,0.123534]
[1731277711864,0.0234112,80968.0,80956.0,0.123522]
[1731277712111,0.0234112,80968.0,80960.0,0.002]
[1731277712311,0.18456882,80962.0,80961.0,0.123516]
[1731277712511,0.0234112,80968.0,80967.0,0.125507]
[1731277713107,0.0234112,80968.0,80967.0,0.123507]
[1731277713313,0.0234112,80968.0,80967.0,0.125507]
[1731277714147,0.0234112,80968.0,80967.0,0.123507]
[1731277714344,0.0234112,80968.0,80967.0,0.125507]
[1731277714750,0.15798002,80981.0,80980.0,0.002]
[1731277715162,0.128476,80987.0,80983.0,0.00196]
[1731277715370,0.005,80985.0,80973.0,0.00196]
[1731277715600,0.12594221,80984.0,80962.0,0.1]
[1731277715873,0.246965,80983.0,80968.0,0.001]
[1731277716086,0.123492,80977.0,80968.0,0.124505]
[1731277716575,0.12594221,80982.0,80970.0,0.123501]
[1731277716790,0.18456882,80981.0,80968.0,0.00196]
[1731277716988,0.12594221,80980.0,80975.0,0.00196]
[1731277717278,4e-05,80977.0,80968.0,0.00196]
[1731277717579,0.005,80971.0,80967.0,0.00196]
[1731277717772,0.12594221,80970.0,80969.0,0.00196]
[1731277717973,0.24944421,80970.0,80969.0,0.00196]
[1731277718175,0.24944421,80970.0,80967.0,0.00196]
[1731277718396,0.123505,80969.0,80967.0,0.00196]
[1731277718615,0.12594221,80969.0,80967.0,0.00196]
[1731277718975,0.247019,80966.0,80952.0,0.01234662]
[1731277719183,0.123514,80963.0,80959.0,0.00196]
[1731277719431,0.005,80969.0,80959.0,0.00196]
[1731277719643,0.123509,80966.0,80961.0,0.00196]
[1731277719843,0.18456882,80969.0,80961.0,0.00196]
[1731277720017,0.18456882,80969.0,80963.0,0.00196]
[1731277720018,0.31051103,80969.0,80963.0,0.00196]
[1731277720588,0.12594221,80969.0,80964.0,0.00196]
[1731277720811,0.12594221,80968.0,80964.0,0.00196]
[1731277721010,4e-05,80966.0,80964.0,0.00196]
[1731277721301,4e-05,80966.0,80961.0,0.00771656]
[1731277721302,0.12594221,80965.0,80961.0,0.00771656]
[1731277721513,0.123511,80964.0,80962.0,0.00771656]
[1731277721707,0.123511,80964.0,80954.0,0.13124256]
[1731277721708,0.12594221,80964.0,80954.0,0.13124256]
[1731277721907,0.12594221,80964.0,80955.0,0.02006356]
[1731277722163,0.12594221,80964.0,80956.0,0.02006356]
[1731277722359,0.12594221,80964.0,80957.0,0.02006356]
[1731277722583,0.25445421,80964.0,80958.0,0.02006356]
[1731277722811,0.13094221,80964.0,80959.0,0.02006356]
[1731277723003,0.25449321,80964.0,80960.0,0.02006356]
[1731277723224,0.13094221,80963.0,80961.0,0.02894117]
[1731277723452,0.123531,80951.0,80950.0,0.00887761]
[1731277723674,0.25447321,80951.0,80950.0,0.02894505]
[1731277723896,0.25447321,80951.0,80950.0,0.00771842]
[1731277724119,0.13094221,80951.0,80941.0,0.00887761]
[1731277724327,0.005,80942.0,80937.0,0.02122663]
[1731277724559,0.12594221,80941.0,80938.0,0.02895165]
[1731277724770,0.12594221,80941.0,80936.0,0.00196]
[1731277724942,0.12594221,80941.0,80931.0,0.03608948]
[1731277724943,0.123551,80938.0,80937.0,0.02895346]
[1731277725157,0.12594221,80938.0,80937.0,0.02895346]
[1731277725355,0.25449321,80938.0,80937.0,0.02895346]
[1731277725726,0.12594221,80938.0,80937.0,0.02895252]
[1731277725928,0.247078,80947.0,80937.0,0.02895252]
[1731277725929,4e-05,80941.0,80938.0,0.741306]
[1731277726168,4e-05,80941.0,80940.0,0.17655562]
[1731277726379,4e-05,80941.0,80940.0,0.22869634]
[1731277726592,0.005,80957.0,80950.0,0.125491]
[1731277726807,0.18456882,80952.0,80951.0,0.02895252]
[1731277727037,0.13094221,80952.0,80951.0,0.01660148]
[1731277727259,0.25447121,80952.0,80951.0,0.01660148]
[1731277727437,0.005,80949.0,80944.0,0.00888208]
[1731277727675,0.1,80951.0,80944.0,0.00888208]
[1731277727676,0.12854,80945.0,80944.0,0.00888208]
[1731277727864,0.005,80936.0,80935.0,0.03528737]
[1731277728092,0.005,80936.0,80935.0,0.02006907]
[1731277728312,0.13082928,80936.0,80935.0,0.02006907]
[1731277728511,0.33708328,80936.0,80935.0,0.02006907]
[1731277728725,0.00988707,80925.0,80924.0,0.001396]
[1731277728931,0.35940028,80925.0,80924.0,0.001396]
[1731277729136,0.36940028,80925.0,80924.0,0.001396]
[1731277729716,0.31739007,80904.0,80903.0,0.01404477]
[1731277730085,0.12849407,80901.0,80892.0,0.0123548]
[1731277730334,0.12849407,80901.0,80893.0,0.0123548]
[1731277730335,0.13082928,80901.0,80893.0,0.0123548]
[1731277730553,0.23351007,80891.0,80887.0,0.03534079]
[1731277730774,0.24351607,80887.0,80870.0,0.2]
[1731277730958,0.14354007,80871.0,80870.0,0.2]
[1731277731230,0.14354007,80871.0,80805.0,0.123753]
[1731277731231,0.13358007,80845.0,80805.0,0.123753]
[1731277731449,0.13358007,80845.0,80803.0,0.20678396]
[1731277731450,0.00488707,80826.0,80803.0,0.20678396]
[1731277731667,0.0781,80843.0,80837.0,0.93291293]
[1731277731893,0.123727,80823.0,80803.0,0.20678396]
[1731277732114,0.34966921,80823.0,80803.0,0.21178396]
[1731277732322,0.12594221,80823.0,80820.0,0.005]
[1731277732531,0.12594221,80823.0,80819.0,0.005]
[1731277732532,0.12594221,80823.0,80822.0,0.34063492]
[1731277732953,0.12598221,80823.0,80822.0,0.34063492]
[1731277733598,8e-05,80823.0,80822.0,0.34563492]
[1731277733825,8e-05,80823.0,80822.0,0.45563492]
[1731277734031,0.082,80890.0,80858.0,0.138633]
[1731277734264,0.01284004,80877.0,80858.0,0.243633]
[1731277734476,0.18456882,80892.0,80858.0,0.301833]
[1731277734710,0.18456882,80892.0,80869.0,0.140576]
[1731277734928,0.18456882,80892.0,80869.0,0.243616]
[1731277735148,0.18456882,80892.0,80882.0,0.138596]
[1731277735567,0.18456882,80896.0,80890.0,0.153584]
[1731277735774,0.18456882,80896.0,80890.0,0.38148621]
[1731277736417,0.18456882,80896.0,80890.0,0.138584]
[1731277737044,0.18456882,80916.0,80890.0,0.138584]
[1731277738167,0.247177,80914.0,80890.0,0.138584]
[1731277738377,0.12602221,80891.0,80890.0,0.128624]
[1731277738586,0.12602221,80891.0,80890.0,0.123624]
[1731277739225,0.12606221,80891.0,80890.0,0.123624]
[1731277739441,0.12610221,80891.0,80890.0,0.123624]
[1731277739856,0.12614221,80891.0,80890.0,0.118624]
[1731277740286,0.12614221,80891.0,80884.0,0.247267]
[1731277740287,0.12618221,80891.0,80882.0,0.247272]
[1731277740520,0.12618221,80891.0,80876.0,0.005]
[1731277740521,0.12594221,80890.0,80876.0,0.005]
[1731277740728,0.00024,80891.0,80890.0,0.138584]
[1731277741957,0.00024,80891.0,80890.0,0.128624]
[1731277742394,0.00024,80891.0,80881.0,0.005]
[1731277742395,0.12618221,80891.0,80881.0,0.005]
[1731277742666,0.12618221,80891.0,80853.0,0.005]
[1731277742667,0.123671,80860.0,80853.0,0.005]
[1731277742885,0.223672,80859.0,80858.0,0.18456882]
[1731277743127,0.223672,80859.0,80827.0,0.05308086]
[1731277743128,0.1,80848.0,80827.0,0.25244]
[1731277743379,0.1,80848.0,80836.0,0.18456882]
[1731277743574,0.247323,80866.0,80822.0,0.0061353]
[1731277743575,0.01,80845.0,80822.0,0.0061353]
[1731277743729,0.01,80845.0,80824.0,0.18456882]
[1731277743730,0.37334921,80839.0,80824.0,0.18456882]
[1731277743947,0.005,80868.0,80841.0,0.00496]
[1731277744305,0.005,80868.0,80822.0,0.2635903]
[1731277744306,0.18456882,80860.0,80859.0,0.128632]
[1731277744462,0.18456882,80888.0,80878.0,0.00496]
[1731277744671,0.18456882,80888.0,80878.0,0.128603]
[1731277745089,0.18456882,80888.0,80887.0,0.128589]
[1731277745241,0.18456882,80888.0,80879.0,0.25228]
[1731277745242,0.00024,80891.0,80890.0,0.128584]
[1731277746115,0.00024,80891.0,80890.0,0.24377797]
[1731277746360,0.00024,80891.0,80890.0,0.24130565]
[1731277746478,0.00024,80891.0,80890.0,0.13630565]
[1731277746682,0.00024,80891.0,80890.0,0.128584]
[1731277746915,0.12618221,80891.0,80887.0,0.00496]
[1731277747118,0.12594221,80890.0,80887.0,0.00496]
[1731277747379,0.12594221,80890.0,80888.0,0.123627]
[1731277747531,0.00024,80891.0,80890.0,0.00496]
[1731277747707,0.00024,80891.0,80890.0,0.128584]
[1731277748468,0.00024,80891.0,80890.0,0.25377879]
[1731277748827,0.00024,80891.0,80890.0,0.25130634]
[1731277749034,0.00024,80891.0,80890.0,0.25130493]
[1731277749784,0.00024,80891.0,80890.0,0.37724714]
[1731277750018,0.18456882,80906.0,80905.0,0.130521]
[1731277750243,0.18456882,80906.0,80905.0,0.13824193]
[1731277750405,0.18456882,80916.0,80915.0,0.123586]
[1731277750612,0.001768,80941.0,80913.0,0.00496]
[1731277750815,0.18456882,80916.0,80915.0,0.00496]
[1731277751021,0.123623,80891.0,80890.0,0.000844]
[1731277751462,0.24724,80893.0,80890.0,0.000844]
[1731277751673,0.247235,80895.0,80890.0,0.000844]
[1731277751674,0.123622,80892.0,80890.0,0.000844]
[1731277751892,0.247194,80908.0,80890.0,0.005804]
[1731277752097,0.18456882,80903.0,80900.0,0.00496]
[1731277752312,0.12594221,80907.0,80890.0,0.000844]
[1731277752313,4e-05,80916.0,80915.0,0.123586]
[1731277752541,0.12598221,80916.0,80911.0,0.00496]
[1731277752783,0.12598221,80916.0,80914.0,0.123588]
[1731277752784,0.12594221,80915.0,80914.0,0.123588]
[1731277753212,0.12594221,80915.0,80911.0,0.00496]
[1731277753448,4e-05,80916.0,80915.0,0.128546]
[1731277753852,4e-05,80916.0,80915.0,0.13626697]
[1731277754519,4e-05,80916.0,80915.0,0.26968066]
[1731277754656,4e-05,80916.0,80915.0,0.14726697]
[1731277754861,4e-05,80916.0,80915.0,0.14226697]
[1731277755125,4e-05,80916.0,80915.0,0.13130697]
[1731277755336,4e-05,80916.0,80915.0,0.13626697]
[1731277755528,4e-05,80916.0,80915.0,0.128546]
[1731277756639,4e-05,80916.0,80915.0,0.133546]
[1731277757301,4e-05,80916.0,80915.0,0.128546]
[1731277758373,4e-05,80916.0,80915.0,0.14601738]
[1731277758593,4e-05,80916.0,80915.0,0.26948821]
[1731277759664,0.17960882,80934.0,80933.0,0.128518]
[1731277759902,0.001768,80941.0,80940.0,0.128508]
[1731277760358,0.001768,80941.0,80940.0,0.133508]
[1731277760787,0.001768,80941.0,80940.0,0.243508]
[1731277762327,0.001768,80941.0,80940.0,0.128508]
[1731277762554,0.001728,80964.0,80963.0,0.00496]
[1731277762767,0.001728,80964.0,80963.0,0.128473]
[1731277764116,0.001728,80964.0,80963.0,0.00496]
[1731277764343,0.001728,80964.0,80963.0,0.128473]
[1731277765400,0.001728,80964.0,80963.0,0.00496]
[1731277765616,0.001768,80964.0,80963.0,0.128473]
[1731277766240,0.001808,80964.0,80963.0,0.128473]
[1731277766448,0.001848,80964.0,80963.0,0.128473]
[1731277766901,0.001888,80964.0,80963.0,0.128473]
[1731277767105,0.001928,80964.0,80963.0,0.128473]
[1731277768241,0.001928,80964.0,80958.0,0.00496]
[1731277768469,0.247029,80962.0,80951.0,0.00496]
[1731277768714,0.123525,80955.0,80954.0,0.18456882]
[1731277768923,0.123527,80954.0,80951.0,0.00496]
[1731277769116,0.12594221,80955.0,80951.0,0.00496]
[1731277770034,0.12594221,80954.0,80949.0,0.00496]
[1731277770254,0.24946921,80954.0,80949.0,0.00496]
[1731277770468,0.123529,80953.0,80949.0,0.00496]
[1731277770669,0.12594221,80952.0,80934.0,0.00496]
[1731277770873,0.247081,80945.0,80935.0,0.18456882]
[1731277771115,0.123553,80937.0,80935.0,0.18456882]
[1731277771343,0.123553,80937.0,80920.0,0.247156]
[1731277771344,0.12594221,80936.0,80932.0,0.00496]
[1731277771561,0.247114,80934.0,80922.0,0.00496]
[1731277771783,0.12594221,80936.0,80923.0,0.18456882]
[1731277771784,0.123572,80924.0,80923.0,0.18456882]
[1731277772007,0.24451421,80924.0,80915.0,0.000844]
[1731277772264,0.24714,80926.0,80915.0,0.000844]
[1731277772265,0.223584,80916.0,80915.0,0.000844]
[1731277772495,0.233584,80916.0,80915.0,0.000844]
[1731277772701,0.35952621,80916.0,80915.0,0.000844]
[1731277774091,0.36125421,80916.0,80915.0,0.000844]
[1731277774250,0.36129421,80916.0,80915.0,0.000844]
[1731277774431,0.36133421,80916.0,80915.0,0.000844]
[1731277775727,0.35633421,80916.0,80915.0,0.000844]
[1731277777247,0.35133421,80916.0,80915.0,0.000844]
[1731277777484,0.35633421,80916.0,80915.0,0.000844]
[1731277778102,0.123623,80891.0,80890.0,0.000844]
[1731277778309,0.24956521,80891.0,80890.0,0.000844]
[1731277779768,0.24960521,80891.0,80890.0,0.000844]
[1731277780183,0.24964521,80891.0,80890.0,0.000844]
[1731277780597,0.12367,80860.0,80859.0,0.00496]
[1731277781246,0.247322,80866.0,80859.0,0.00496]
[1731277781418,0.247322,80866.0,80851.0,0.123684]
[1731277781419,0.01,80892.0,80870.0,0.00496]
[1731277781638,0.18456882,80876.0,80870.0,0.00496]
[1731277781840,0.247281,80880.0,80870.0,0.00496]
[1731277781841,0.123649,80874.0,80870.0,0.00496]
[1731277782130,0.12594221,80874.0,80870.0,0.00496]
[1731277782378,0.12594221,80872.0,80848.0,0.00496]
[1731277782582,0.18456882,80873.0,80849.0,0.18456882]
[1731277782583,0.123685,80850.0,80849.0,0.18456882]
[1731277782807,0.123685,80850.0,80834.0,0.0014]
[1731277782808,0.123708,80835.0,80834.0,0.0014]
[1731277783078,0.1,80849.0,80834.0,0.0014]
[1731277783300,0.18456882,80847.0,80834.0,0.0014]
[1731277783525,0.123699,80842.0,80836.0,0.00496]
[1731277783736,0.1,80866.0,80849.0,0.00496]
[1731277783961,0.123675,80857.0,80849.0,0.00496]
[1731277784202,0.12594221,80865.0,80857.0,0.00496]
[1731277784399,0.123666,80863.0,80857.0,0.00496]
[1731277784627,0.12594221,80862.0,80857.0,0.00496]
[1731277784865,0.12577554,80862.0,80857.0,0.00496]
[1731277785094,0.12577554,80862.0,80849.0,0.00496]
[1731277785095,0.18456882,80858.0,80849.0,0.00496]
[1731277785292,0.12594221,80857.0,80849.0,0.00496]
[1731277785406,0.247353,80856.0,80849.0,0.00496]
[1731277785617,0.12594221,80855.0,80849.0,0.00496]
[1731277786321,0.12594221,80855.0,80849.0,0.005804]
[1731277786769,0.123681,80853.0,80849.0,0.005804]
[1731277786974,0.12594221,80853.0,80849.0,0.005804]
[1731277788032,0.12594221,80853.0,80851.0,0.001]
[1731277788436,0.12594221,80853.0,80850.0,0.247371]
[1731277788582,4e-05,80855.0,80851.0,0.00496]
[1731277788583,8e-05,80855.0,80851.0,0.00496]
[1731277788789,0.12602221,80855.0,80851.0,0.128643]
[1731277789000,0.18456882,80852.0,80849.0,0.005804]
[1731277789358,0.123685,80850.0,80849.0,0.000844]
[1731277789562,0.24962721,80850.0,80849.0,0.000844]
[1731277789712,0.42879831,80850.0,80849.0,0.000844]
[1731277789924,0.68167577,80850.0,80849.0,0.000844]
[1731277790131,0.58167577,80850.0,80849.0,0.000844]
[1731277790347,0.69167577,80850.0,80849.0,0.000844]
[1731277790690,0.68667577,80850.0,80849.0,0.000844]
[1731277791165,0.69167577,80850.0,80849.0,0.000844]
[1731277791612,0.69167577,80850.0,80822.0,0.0052913]
[1731277791613,0.123708,80835.0,80822.0,0.0052913]
[1731277791824,0.12594221,80835.0,80827.0,0.12372]
[1731277792040,0.12594221,80835.0,80827.0,0.247439]
[1731277792223,0.12594221,80835.0,80832.0,0.123712]
[1731277792574,0.24965021,80835.0,80822.0,0.0052913]
[1731277793718,0.12594221,80835.0,80828.0,0.00496]
[1731277794370,0.12594221,80835.0,80829.0,0.123717]
[1731277794569,0.12594221,80835.0,80828.0,0.00496]
[1731277794782,0.12594221,80835.0,80832.0,0.123712]
[1731277795037,0.12594221,80835.0,80834.0,0.12511]
[1731277795351,4e-05,80835.0,80834.0,0.13007]
[1731277795575,8e-05,80835.0,80834.0,0.13007]
[1731277795768,0.00012,80835.0,80834.0,0.13007]
[1731277796791,0.00012,80835.0,80834.0,0.23203]
[1731277797153,0.00012,80835.0,80834.0,0.13007]
[1731277798228,0.00012,80835.0,80834.0,0.12511]
[1731277798435,0.00012,80835.0,80834.0,0.13007]
[1731277799077,0.00012,80850.0,80849.0,0.128647]
[1731277800359,0.00012,80850.0,80849.0,0.13947836]
[1731277800654,0.00012,80850.0,80849.0,0.23751836]
[1731277801226,0.00012,80850.0,80849.0,0.13751836]
[1731277802582,0.00016,80850.0,80849.0,0.13751836]
[1731277802962,0.24978721,80850.0,80849.0,0.00887136]
[1731277803167,0.12610221,80850.0,80838.0,0.00496]
[1731277803343,0.12594221,80849.0,80842.0,0.00496]
[1731277803545,0.00016,80850.0,80849.0,0.00496]
[1731277803750,0.12610221,80850.0,80846.0,0.123691]
[1731277804029,0.12610221,80850.0,80834.0,0.0014]
[1731277804030,0.12594221,80849.0,80839.0,0.00496]
[1731277804198,0.12594221,80849.0,80835.0,0.00496]
[1731277804525,0.00016,80850.0,80834.0,0.01030432]
[1731277804526,0.123708,80835.0,80834.0,0.01030432]
[1731277804727,0.24965021,80835.0,80834.0,0.0014]
[1731277806128,0.12594221,80835.0,80834.0,0.0014]
[1731277806322,0.18456882,80844.0,80839.0,0.00496]
[1731277806500,0.12594221,80843.0,80839.0,0.00496]
[1731277807304,0.24963921,80843.0,80839.0,0.00496]
[1731277808117,0.123698,80842.0,80839.0,0.00496]
[1731277808322,0.00016,80850.0,80849.0,0.00496]
[1731277808711,0.00016,80850.0,80849.0,0.128647]
[1731277808968,0.14488882,80857.0,80856.0,0.128636]
[1731277809196,0.00185617,80859.0,80858.0,0.128633]
[1731277810079,0.00185617,80859.0,80858.0,0.24610623]
[1731277810296,0.00185617,80859.0,80858.0,0.37204844]
[1731277810535,0.18456882,80875.0,80861.0,0.01996]
[1731277810751,0.18456882,80875.0,80861.0,0.44874396]
[1731277810949,0.18456882,80885.0,80884.0,0.133593]
[1731277811313,0.00012,80891.0,80890.0,0.138584]
[1731277811510,0.00012,80891.0,80890.0,0.186184]
[1731277811786,0.00012,80891.0,80890.0,0.191184]
[1731277811996,0.00012,80891.0,80890.0,0.19890598]
[1731277812563,0.001808,80916.0,80915.0,0.00496]
[1731277812800,0.001808,80916.0,80915.0,0.37968163]